fUST/lending_fUST_20240924
["ID","MTS","AMOUNT","RATE_DAILY","PERIOD"]
[339066311,1727188250931,-500.0,0.00027671,7]
[339066312,1727188250940,-500.0,0.00027671,7]
[339066313,1727188250950,-500.0,0.00027671,7]
[339066314,1727188250962,-151.0,0.00027671,7]
[339066315,1727188250971,-248.865708,0.00027671,7]
[339066316,1727188250981,-500.0,0.00027671,7]
[339066317,1727188250990,-500.0,0.00027671,7]
[339066318,1727188251000,-977.07,0.00027671,7]
[339066319,1727188251009,-248.865708,0.00027671,7]
[339066320,1727188251019,-500.0,0.00027671,7]
[339066321,1727188251028,-500.0,0.00027671,7]
[339066322,1727188251038,-151.0,0.00027671,7]
[339066323,1727188251047,-500.0,0.00027671,7]
[339066324,1727188251056,-676.29,0.00027671,7]
[339066325,1727188251066,-500.0,0.00027671,7]
[339066326,1727188251075,-500.0,0.00027671,7]
[339066327,1727188251084,-502.35637925,0.00027671,7]
[339066328,1727188251094,-502.33446513,0.00027671,7]
[339066329,1727188251104,-500.0,0.00027671,7]
[339066330,1727188251114,-529.65646299,0.00027671,7]
[339066331,1727188251125,-500.0,0.00027671,7]
[339066332,1727188251135,-503.571428,0.00027671,7]
[339066333,1727188251145,-500.0,0.00027671,7]
[339066334,1727188251154,-500.0,0.00027671,7]
[339066335,1727188251164,-625.2,0.00027671,2]
[339066336,1727188251173,-225.10004,0.00027671,7]
[339066337,1727188251183,-504.42675418,0.00027671,7]
[339066338,1727188251192,-665.41,0.00027671,7]
[339066339,1727188251203,-500.0,0.00027671,7]
[339066340,1727188251214,-500.0,0.00027671,7]
[339066341,1727188251224,-225.10004,0.00027671,7]
[339066342,1727188251236,-151.0,0.00027671,7]
[339066343,1727188251245,-500.0,0.00027671,7]
[339066344,1727188251256,-500.0,0.00027671,7]
[339066345,1727188251266,-500.0,0.00027671,7]
[339066346,1727188251275,-151.0,0.00027671,7]
[339066347,1727188251285,-630.16,0.00027671,7]
[339066348,1727188251295,-501.15742806,0.00027671,7]
[339066349,1727188251306,-151.0,0.00027671,7]
[339066350,1727188251316,-500.0,0.00027671,7]
[339066351,1727188251326,-500.0,0.00027671,7]
[339066352,1727188251336,-500.0,0.00027671,7]
[339066353,1727188251348,-500.0,0.00027671,7]
[339066354,1727188251358,-500.0,0.00027671,7]
[339066355,1727188251367,-500.0,0.00027671,7]
[339066356,1727188251376,-500.0,0.00027671,7]
[339066357,1727188251386,-547.43,0.00027671,7]
[339066358,1727188251396,-500.0,0.00027671,7]
[339066359,1727188251406,-500.0,0.00027671,2]
[339066360,1727188251415,-500.0,0.00027671,7]
[339066361,1727188251426,-500.0,0.00027671,7]
[339066362,1727188251437,-500.0,0.00027671,7]
[339066363,1727188251448,-500.0,0.00027671,7]
[339066364,1727188251462,-500.0,0.00027671,7]
[339066365,1727188251472,-500.0,0.00027671,7]
[339066366,1727188251481,-500.0,0.00027671,7]
[339066367,1727188251491,-500.0,0.00027671,7]
[339066368,1727188251501,-548.53,0.00027671,7]
[339066369,1727188251510,-500.0,0.00027671,7]
[339066370,1727188251520,-594.98,0.00027671,7]
[339066371,1727188251530,-502.17,0.00027671,7]
[339066372,1727188251540,-500.0,0.00027671,7]
[339066373,1727188251551,-500.0,0.00027671,7]
[339066374,1727188251562,-500.0,0.00027671,7]
[339066375,1727188251573,-341.33408448,0.00027671,7]
[339066376,1727188251582,-500.0,0.00027671,7]
[339066377,1727188251594,-307.49,0.00027671,7]
[339066378,1727188251603,-500.0,0.00027671,7]
[339066379,1727188251613,-500.0,0.00027671,7]
[339066380,1727188251622,-500.0,0.00027671,7]
[339066381,1727188251634,-279.615547,0.00027671,7]
[339066382,1727188251644,-621.96,0.00027671,7]
[339066383,1727188251657,-500.0,0.00027671,7]
[339066384,1727188251668,-279.615547,0.00027671,7]
[339066385,1727188251678,-510.73346113,0.00027671,7]
[339066386,1727188251687,-500.0,0.00027671,7]
[339066387,1727188251697,-500.0,0.00027671,7]
[339066388,1727188251706,-566.77918991,0.00027671,7]
[339066389,1727188251720,-500.0,0.00027671,7]
[339066390,1727188251729,-500.0,0.00027671,7]
[339066391,1727188251739,-503.227584,0.00027671,7]
[339066392,1727188251748,-500.0,0.00027671,7]
[339066393,1727188251758,-238.88,0.00027671,7]
[339066394,1727188251767,-500.0,0.00027671,7]
[339066395,1727188251777,-500.0,0.00027671,7]
[339066396,1727188251787,-500.0,0.00027671,7]
[339066397,1727188251797,-500.0,0.00027671,7]
[339066398,1727188251807,-151.0,0.00027671,7]
[339066399,1727188251816,-151.0,0.00027671,7]
[339066400,1727188251825,-500.0,0.00027671,7]
[339066401,1727188251835,-500.0,0.00027671,7]
[339066402,1727188251844,-151.0,0.00027671,7]
[339066403,1727188251853,-500.0,0.00027671,5]
[339066404,1727188251863,-151.0,0.00027671,7]
[339066405,1727188251872,-500.0,0.00027671,7]
[339066406,1727188251882,-500.0,0.00027671,7]
[339066407,1727188251891,-151.0,0.00027671,7]
[339066408,1727188251901,-545.05,0.00027671,7]
[339066409,1727188251910,-634.29,0.00027671,7]
[339066410,1727188251920,-500.0,0.00027671,7]
[339066411,1727188252040,-151.0,0.00027671,7]
[339066412,1727188252050,-167.036666,0.00027671,7]
[339066413,1727188252060,-500.0,0.00027671,7]
[339066414,1727188252069,-167.036666,0.00027671,7]
[339066415,1727188252079,-718.15,0.00027671,7]
[339066416,1727188252088,-167.036666,0.00027671,7]
[339066417,1727188252098,-500.0,0.00027671,7]
[339066418,1727188252107,-167.036666,0.00027671,7]
[339066419,1727188252117,-520.2,0.00027671,7]
[339066420,1727188252127,-151.0,0.00027671,7]
[339066421,1727188252136,-151.0,0.00027671,7]
[339066422,1727188252145,-151.0,0.00027671,7]
[339066423,1727188252154,-500.0,0.00027671,7]
[339066424,1727188252163,-500.0,0.00027671,7]
[339066425,1727188252173,-505.00347395,0.00027671,7]
[339066426,1727188252182,-465.18182412,0.00027671,7]
[339066427,1727188252191,-500.0,0.00027671,7]
[339066428,1727188252200,-500.0,0.00027671,7]
[339066429,1727188252217,-500.0,0.00027671,7]
[339066430,1727188252227,-500.0,0.00027671,7]
[339066431,1727188252240,-500.0,0.00027671,7]
[339066432,1727188252250,-406.1539444,0.00027671,7]
[339066433,1727188252259,-500.0,0.00027671,7]
[339066434,1727188252268,-500.0,0.00027671,7]
[339066435,1727188252278,-671.72,0.00027671,7]
[339066436,1727188252287,-500.0,0.00027671,7]
[339066437,1727188252296,-500.0,0.00027671,7]
[339066438,1727188252305,-500.0,0.00027671,7]
[339066439,1727188252314,-500.0,0.00027671,7]
[339066440,1727188252324,-500.0,0.00027671,7]
[339066441,1727188252333,-500.0,0.00027671,7]
[339066442,1727188252343,-500.0,0.00027671,7]
[339066443,1727188252353,-637.01563231,0.00027671,7]
[339066444,1727188252364,-500.0,0.00027671,7]
[339066445,1727188252373,-500.0,0.00027671,7]
[339066446,1727188252382,-2152.02,0.00027671,7]
[339066447,1727188252391,-500.0,0.00027671,7]
[339066448,1727188252401,-151.0,0.00027671,7]
[339066449,1727188252410,-500.0,0.00027671,7]
[339066450,1727188252419,-500.0,0.00027671,7]
[339066451,1727188252428,-151.0,0.00027671,7]
[339066452,1727188252438,-151.0,0.00027671,7]
[339066453,1727188252448,-500.0,0.00027671,7]
[339066454,1727188252461,-226.114725,0.00027671,7]
[339066455,1727188252471,-332.97579615,0.00027671,7]
[339066456,1727188252481,-226.114725,0.00027671,7]
[339066457,1727188252490,-500.0,0.00027671,7]
[339066458,1727188252499,-500.0,0.00027671,7]
[339066459,1727188252508,-401.59779302,0.00027671,7]
[339066460,1727188252517,-500.0,0.00027671,7]
[339066461,1727188252526,-500.0,0.00027671,7]
[339066462,1727188252535,-500.0,0.00027671,7]
[339066463,1727188252544,-581.35,0.00027671,7]
[339066464,1727188252553,-500.0,0.00027671,7]
[339066465,1727188252563,-500.0,0.00027671,7]
[339066466,1727188252572,-233.45454511,0.00027671,7]
[339066467,1727188252582,-500.0,0.00027671,7]
[339066468,1727188252591,-500.0,0.00027671,7]
[339066469,1727188252600,-500.0,0.00027671,7]
[339066470,1727188252610,-500.0,0.00027671,7]
[339066471,1727188252619,-500.0,0.00027671,7]
[339066472,1727188252629,-601.61,0.00027671,7]
[339066473,1727188252638,-151.0,0.00027671,7]
[339066474,1727188252649,-151.0,0.00027671,7]
[339066475,1727188252659,-56.72960794,0.00027671,7]
[339066476,1727188253070,-500.0,0.00025862,2]
[339066477,1727188253079,-157.54269562,0.00025862,2]
[339066478,1727188253088,-500.0,0.00025862,2]
[339066479,1727188253097,-500.0,0.00025862,2]
[339066480,1727188253107,-500.0,0.00025862,2]
[339066481,1727188253116,-500.0,0.00025862,2]
[339066482,1727188253125,-500.0,0.00025862,2]
[339066483,1727188253134,-378.03132404,0.00026984,2]
[339066484,1727188253143,-378.03132404,0.00027287,2]
[339066485,1727188253151,-269.1,0.00027376,2]
[339066486,1727188253161,-269.1,0.00027376,2]
[339066487,1727188253169,-269.1,0.00027376,2]
[339066488,1727188253178,-269.1,0.00027376,2]
[339066489,1727188253187,-269.1,0.00027376,2]
[339066490,1727188253197,-269.1,0.00027376,2]
[339066491,1727188253211,-82.25144388,0.00027387,3]
[339066492,1727188253223,-495.04855612,0.00027387,3]
[339066493,1727188253235,-500.0,0.00027397,2]
[339066494,1727188253246,-500.0,0.00027397,2]
[339066495,1727188253256,-1001.24039206,0.00027671,7]
[339066496,1727188253266,-22.8470823,0.00027671,7]
[339066502,1727189007531,10000.0,0.0002221,60]
[339066503,1727189030210,10000.0,0.0002221,60]
[339066504,1727189069512,10000.0,0.0002221,60]
[339066505,1727189105223,10000.0,0.0002221,60]
[339066509,1727189347157,-259.11359421,0.00021918,2]
[339066510,1727189347177,-175.69148505,0.00022166,2]
[339066511,1727189347198,-190.782346,0.00022184,2]
[339066512,1727189347218,-380.61049886,0.0002358,2]
[339066513,1727189365128,-749.19869054,0.0002358,2]
[339066514,1727189365150,-250.0,0.00023655,2]
[339066515,1727189365170,-23.43755882,0.00023693,2]
[339066516,1727189370533,202.41669458,0.00025,120]
[339066564,1727189432236,-143.22910718,0.00023693,2]
[339066566,1727189432247,-250.0,0.0002372,2]
[339066567,1727189432256,-455.5419837,0.00023744,2]
[339066568,1727189432268,-185.4984563,0.00023744,2]
[339066569,1727189432278,-250.0,0.00023785,2]
[339066570,1727189432289,-250.0,0.0002385,2]
[339066571,1727189432298,-250.0,0.00023915,2]
[339066572,1727189432308,-145.77263056,0.00023924,2]
[339066573,1727189432320,-104.22736944,0.00023924,2]
[339066574,1727189432330,-241.47567449,0.00023944,2]
[339066575,1727189432339,-250.0,0.0002398,2]
[339066576,1727189432349,-212.28508946,0.00024038,2]
[339066577,1727189432361,-4044.24454784,0.00024038,2]
[339066578,1727189432372,-2732.45383361,0.00024044,2]
[339066579,1727189432381,-300.0,0.00024044,2]
[339066580,1727189432391,-300.0,0.00024044,2]
[339066581,1727189432402,-250.0,0.00024045,2]
[339066582,1727189432411,-106.85097358,0.00024102,2]
[339066751,1727189438471,-66.70147322,0.00024102,2]
[339066752,1727189438481,-250.0,0.00024109,2]
[339066753,1727189438491,-250.0,0.00024174,2]
[339066754,1727189438501,-173.42282,0.00024228,2]
[339066755,1727189438511,-250.0,0.00024239,2]
[339066756,1727189438521,-250.0,0.00024304,2]
[339066757,1727189438531,-1206.1677005,0.00024333,2]
[339066758,1727189438541,-166.666666,0.00024339,2]
[339066759,1727189438551,-173.42282,0.00024349,2]
[339066760,1727189438562,-250.0,0.00024369,2]
[339066761,1727189438571,-250.0,0.00024434,2]
[339066762,1727189438582,-250.0,0.00024499,2]
[339066763,1727189438591,-250.0,0.00024564,2]
[339066764,1727189438601,-250.0,0.00024628,2]
[339066765,1727189438611,-250.0,0.00024693,2]
[339066766,1727189438619,-250.0,0.00024758,2]
[339066767,1727189438629,-250.0,0.00024823,2]
[339066768,1727189438640,-200.405627,0.0002485,2]
[339066769,1727189438653,-250.0,0.00024888,2]
[339066770,1727189438666,-166.666666,0.00024985,2]
[339066771,1727189438676,-327.53140531,0.00025,30]
[339066772,1727189438685,-1622.10912572,0.00025268,2]
[339066773,1727189438695,-207.10454671,0.00025488,2]
[339066774,1727189438705,-4557.60077188,0.00025532,2]
[339066775,1727189438715,-1051.39958418,0.00025609,2]
[339066776,1727189438724,-500.0,0.00025614,2]
[339066777,1727189438735,-500.0,0.00025614,2]
[339066778,1727189438745,-361.64183528,0.00025614,2]
[339066779,1727189438754,-500.0,0.00025614,2]
[339066780,1727189438764,-536.90744384,0.00025614,2]
[339066781,1727189438774,-500.0,0.00025614,2]
[339066782,1727189438784,-500.0,0.00025614,2]
[339066783,1727189438793,-500.0,0.00025614,2]
[339066784,1727189438802,-246.25095654,0.00025614,2]
[339066785,1727189438811,-500.0,0.00025614,2]
[339066786,1727189438821,-283.13625014,0.00025614,2]
[339066787,1727189438831,-500.0,0.00025614,2]
[339066788,1727189438840,-500.0,0.00025614,2]
[339066789,1727189438849,-500.0,0.00025614,2]
[339066790,1727189438859,-500.0,0.00025614,2]
[339066791,1727189438868,-500.0,0.00025614,2]
[339066792,1727189438878,-24900.0,0.00025621,2]
[339066793,1727189438887,-166.666666,0.00025631,2]
[339066794,1727189438896,-420.0,0.00026073,2]
[339066795,1727189438907,-166.666666,0.00026277,2]
[339066796,1727189438916,-420.0,0.00026448,2]
[339066797,1727189438925,-702.4,0.00026911,3]
[339066798,1727189438935,-585.33,0.00026911,3]
[339066799,1727189438945,-551.41494961,0.0002692,2]
[339066800,1727189438954,-500.0,0.0002692,2]
[339066801,1727189438964,-218.63320812,0.0002692,2]
[339066802,1727189438973,-500.0,0.0002692,2]
[339066803,1727189438983,-406.17486968,0.0002692,2]
[339066804,1727189438993,-500.0,0.0002692,2]
[339066805,1727189439002,-500.0,0.0002692,2]
[339066806,1727189439012,-500.0,0.0002692,2]
[339066807,1727189439021,-500.0,0.0002692,2]
[339066808,1727189439031,-500.0,0.0002692,2]
[339066809,1727189439040,-500.0,0.0002692,2]
[339066810,1727189439049,-500.0,0.0002692,2]
[339066811,1727189439060,-500.0,0.0002692,2]
[339066812,1727189439070,-423393.96203102,0.00026921,2]
[339066813,1727189439106,-32878.11370385,0.00026921,2]
[339066814,1727189439118,-166.666666,0.00026923,2]
[339066815,1727189439129,-500.0,0.00026973,2]
[339066816,1727189439140,-5295.20937134,0.00026986,2]
[339066817,1727189439150,-1000.0,0.00027,120]
[339066818,1727189439162,-821.5839595,0.00027,120]
[339066819,1727189439172,-182.57,0.00027267,7]
[339066820,1727189439182,-182.44803494,0.00027267,7]
[339066821,1727189439192,-182.44803494,0.00027267,7]
[339066822,1727189439201,-182.44803494,0.00027267,7]
[339066823,1727189439211,-196.56827448,0.00027267,7]
[339066824,1727189439220,-197.06,0.00027267,7]
[339066825,1727189439230,-157.40461958,0.00027267,7]
[339066826,1727189439241,-157.40461958,0.00027267,7]
[339066827,1727189439251,-157.40461958,0.00027267,7]
[339066828,1727189439262,-157.40461958,0.00027267,7]
[339066829,1727189439271,-157.40461958,0.00027267,7]
[339066830,1727189439281,-157.40461958,0.00027267,7]
[339066831,1727189439290,-157.40461958,0.00027267,7]
[339066832,1727189439299,-157.40461958,0.00027267,7]
[339066833,1727189439310,-157.40461958,0.00027267,7]
[339066834,1727189439320,-1608.08237532,0.00027287,2]
[339066835,1727189439329,-182.94,0.00027297,7]
[339066836,1727189439339,-157.9,0.00027297,7]
[339066837,1727189439351,-5295.20937134,0.00027327,2]
[339066838,1727189439363,-376.74,0.00027366,2]
[339066839,1727189439372,-376.74,0.00027366,2]
[339066840,1727189439381,-376.74,0.00027366,2]
[339066841,1727189439391,-376.74,0.00027366,2]
[339066842,1727189439403,-376.74,0.00027366,2]
[339066843,1727189439412,-376.74,0.00027366,2]
[339066844,1727189439421,-376.74,0.00027366,2]
[339066845,1727189439432,-204809.71977321,0.00027367,4]
[339066868,1727189440134,-125379.89003579,0.00027367,4]
[339066870,1727189440143,-7614.28569002,0.00027367,4]
[339067121,1727189443406,-9.07186098,0.0002692,2]
[339067159,1727189446214,-490.92813902,0.0002692,2]
[339067160,1727189446224,-314.76280869,0.0002692,2]
[339067161,1727189446233,-450.40905229,0.0002692,2]
[339067162,1727189446246,-49.59094771,0.0002692,2]
[339067163,1727189446256,-151.0,0.0002692,2]
[339067164,1727189446265,-151.0,0.0002692,2]
[339067165,1727189446274,-604.97165708,0.0002723,8]
[339067166,1727189446284,-417.31201474,0.00027367,4]
[339067170,1727189941165,6659.54,0.0002,2]
[339067175,1727190427120,-284.93116722,0.0002313,4]
[339067176,1727190427141,-169.297266,0.00023187,2]
[339067177,1727190427166,-244.3943096,0.00023266,2]
[339067178,1727190427188,-320.52022,0.00023357,2]
[339067179,1727190427210,-166.666666,0.00023736,2]
[339067180,1727190427231,-300.0,0.00024188,2]
[339067181,1727190427255,-300.0,0.00024188,2]
[339067182,1727190427279,-408.20640699,0.00024188,2]
[339067183,1727190561138,-163.19223,0.00023712,2]
[339067184,1727190561161,-163.19223,0.000238,2]
[339067185,1727190561186,-163.19223,0.00023888,2]
[339067186,1727190561211,-163.19223,0.00023977,2]
[339067187,1727190561234,-163.19223,0.00024065,2]
[339067188,1727190561257,-99.93399301,0.00024067,2]
[339067189,1727190562107,-202.55183553,0.00024067,2]
[339067190,1727190562132,-163.19223,0.00024153,2]
[339067191,1727190562160,-300.0,0.00024188,2]
[339067192,1727190562186,-91.79359301,0.00024188,2]
[339067193,1727190562214,-119.90394003,0.00024188,2]
[339067242,1727190638865,-300.0,0.00024188,2]
[339067244,1727190638875,-300.0,0.00024188,2]
[339067246,1727190638885,-505.58112529,0.00024188,2]
[339067248,1727190638894,-500.0,0.00024188,2]
[339067251,1727190638904,-21471.0866158,0.00024189,2]
[339067275,1727190640499,-3428.9133842,0.00024189,2]
[339067276,1727190640509,-163.19223,0.00024241,2]
[339067277,1727190640518,-453.72874281,0.00024308,4]
[339067278,1727190640527,-163.19223,0.0002433,2]
[339067279,1727190640537,-166.666666,0.00024383,2]
[339067280,1727190640546,-163.19223,0.00024418,2]
[339067281,1727190640555,-173.42282,0.00024458,2]
[339067282,1727190640564,-173.42282,0.00024498,2]
[339067283,1727190640574,-163.19223,0.00024506,2]
[339067284,1727190640592,-173.42282,0.00024539,2]
[339067285,1727190640603,-284.90700523,0.00024548,4]
[339067286,1727190640613,-173.42282,0.0002458,2]
[339067287,1727190640622,-163.19223,0.00024594,2]
[339067288,1727190640632,-163.19223,0.00024683,2]
[339067289,1727190640642,-163.19223,0.00024771,2]
[339067290,1727190640651,-160.898667,0.00024827,2]
[339067291,1727190640661,-163.19223,0.00024859,2]
[339067292,1727190640670,-4148.17570803,0.000249,2]
[339067293,1727190640680,-163.19223,0.00024947,2]
[339067294,1727190640689,-2400.0,0.00025,3]
[339067295,1727190640699,-4970.0,0.00025,5]
[339067296,1727190640709,-166.666666,0.00025031,2]
[339067297,1727190640719,-166.666666,0.00025678,2]
[339067298,1727190640729,-6412.94104539,0.00026011,2]
[339067299,1727190640738,-6412.94104539,0.0002603,2]
[339067300,1727190640750,-153.0,0.00026178,2]
[339067301,1727190640760,-420.0,0.00026226,2]
[339067302,1727190640769,-166.666666,0.00026325,2]
[339067303,1727190640779,-6412.94104539,0.00026438,2]
[339067304,1727190640788,-163.15200629,0.000265,2]
[339067305,1727190640799,-150.0,0.00026521,2]
[339067306,1727190640808,-420.0,0.00026607,2]
[339067307,1727190640818,-154.79661188,0.00026624,2]
[339067308,1727190640989,-153.0,0.00026825,2]
[339067309,1727190641002,-153.0,0.00026825,2]
[339067310,1727190641011,-153.0,0.00026825,2]
[339067311,1727190641020,-153.0,0.00026825,2]
[339067312,1727190641029,-500.0,0.00026837,2]
[339067313,1727190641038,-500.0,0.00026837,2]
[339067314,1727190641047,-385.99046472,0.00026837,2]
[339067315,1727190641057,-153.04324569,0.00026837,2]
[339067316,1727190641066,-500.0,0.00026837,2]
[339067317,1727190641076,-348.6034542,0.00026837,2]
[339067318,1727190641085,-500.0,0.00026837,2]
[339067319,1727190641095,-500.0,0.00026837,2]
[339067320,1727190641103,-500.0,0.00026837,2]
[339067321,1727190641113,-500.0,0.00026837,2]
[339067322,1727190641122,-500.0,0.00026837,2]
[339067323,1727190641131,-500.0,0.00026837,2]
[339067324,1727190641140,-6412.94104539,0.00026838,2]
[339067325,1727190641149,-6412.94104539,0.00026964,2]
[339067326,1727190641163,-166.666666,0.00026972,2]
[339067327,1727190641172,-487.78,0.0002698,3]
[339067328,1727190641181,-56648.51860934,0.0002699,4]
[339067336,1727190643505,-9389.40335256,0.0002699,4]
[339067337,1727190643515,-63191.1042127,0.0002699,4]
[339067338,1727190643525,-4999.999999,0.00027,120]
[339067339,1727190643535,-1000.0,0.00027,120]
[339067340,1727190643545,-383.46626,0.00027,120]
[339067341,1727190643554,-1000.0,0.00027,2]
[339067342,1727190643564,-1000.0,0.00027,2]
[339067343,1727190643574,-1000.0,0.00027,2]
[339067344,1727190643585,-1000.0,0.00027,2]
[339067345,1727190643596,-1000.0,0.00027,2]
[339067346,1727190643606,-1000.0,0.00027,2]
[339067347,1727190643617,-1000.0,0.00027,2]
[339067348,1727190643627,-1000.0,0.00027,2]
[339067349,1727190643637,-1000.0,0.00027,2]
[339067350,1727190643649,-1000.0,0.00027,2]
[339067351,1727190643659,-1000.0,0.00027,2]
[339067352,1727190643668,-1000.0,0.00027,2]
[339067353,1727190643678,-1000.0,0.00027,2]
[339067354,1727190643687,-1000.0,0.00027,2]
[339067355,1727190643697,-1000.0,0.00027,2]
[339067356,1727190643706,-1000.0,0.00027,2]
[339067357,1727190643716,-1000.0,0.00027,2]
[339067358,1727190643725,-352.0,0.00027,2]
[339067359,1727190643736,-1000.0,0.00027,2]
[339067360,1727190643746,-1000.0,0.00027,2]
[339067361,1727190643760,-1000.0,0.00027,2]
[339067362,1727190643770,-1000.0,0.00027,2]
[339067363,1727190643779,-1000.0,0.00027,2]
[339067364,1727190643790,-1000.0,0.00027,2]
[339067365,1727190643800,-1000.0,0.00027,2]
[339067366,1727190643810,-1000.0,0.00027,2]
[339067367,1727190643820,-1000.0,0.00027,2]
[339067368,1727190643830,-1000.0,0.00027,2]
[339067369,1727190643840,-1000.0,0.00027,2]
[339067370,1727190643850,-1000.0,0.00027,2]
[339067371,1727190643860,-1110.0,0.00027,2]
[339067372,1727190643870,-2000.40042874,0.00027167,2]
[339067373,1727190643880,-151.21252964,0.00027197,2]
[339067374,1727190643891,-151.21252961,0.00027222,2]
[339067375,1727190643901,-151.21252961,0.00027247,2]
[339067376,1727190643911,-1000.0,0.00027256,2]
[339067377,1727190643921,-66037.9219619,0.00027257,4]
[339067378,1727190643930,-63191.1042127,0.00027257,4]
[339067379,1727190643940,-1625.94995729,0.00027267,2]
[339067380,1727190643951,-402.085,0.00027271,16]
[339067381,1727190643963,-151.21252961,0.00027272,2]
[339067382,1727190643973,-500.0,0.00027273,2]
[339067383,1727190643982,-167.30992164,0.00027296,7]
[339067384,1727190643991,-167.30992164,0.00027296,7]
[339067385,1727190644001,-167.30992164,0.00027296,7]
[339067386,1727190644010,-167.30992164,0.00027296,7]
[339067387,1727190644020,-167.30992164,0.00027296,7]
[339067388,1727190644030,-167.30992164,0.00027296,7]
[339067389,1727190644039,-167.30992164,0.00027296,7]
[339067390,1727190644049,-167.8,0.00027296,7]
[339067391,1727190644058,-267.77087463,0.00027296,7]
[339067392,1727190644068,-267.77087463,0.00027296,7]
[339067393,1727190644078,-267.77087463,0.00027296,7]
[339067394,1727190644088,-267.77087463,0.00027296,7]
[339067395,1727190644098,-267.77087463,0.00027296,7]
[339067396,1727190644108,-267.77087463,0.00027296,7]
[339067397,1727190644117,-267.77087463,0.00027296,7]
[339067398,1727190644127,-267.77087463,0.00027296,7]
[339067399,1727190644138,-267.77087463,0.00027296,7]
[339067400,1727190644149,-267.77087463,0.00027296,7]
[339067401,1727190644160,-267.77087463,0.00027296,7]
[339067402,1727190644171,-267.77087463,0.00027296,7]
[339067403,1727190644180,-267.77087463,0.00027296,7]
[339067404,1727190644190,-267.77087463,0.00027296,7]
[339067405,1727190644202,-267.77087463,0.00027296,7]
[339067406,1727190644212,-267.77087463,0.00027296,7]
[339067407,1727190644221,-267.77087463,0.00027296,7]
[339067408,1727190644231,-267.77087463,0.00027296,7]
[339067409,1727190644242,-267.77087463,0.00027296,7]
[339067410,1727190644252,-3000.0,0.00027297,2]
[339067411,1727190644262,-1701.82154913,0.00027297,2]
[339067412,1727190644271,-268.27,0.00027297,7]
[339067413,1727190644284,-154.86,0.00027297,7]
[339067414,1727190644296,-151.21252961,0.00027297,2]
[339067415,1727190644306,-150.112233,0.000273,6]
[339067416,1727190644316,-150.112233,0.000273,5]
[339067417,1727190644326,-150.112233,0.000273,7]
[339067418,1727190644336,-150.112233,0.000273,6]
[339067419,1727190644347,-150.112233,0.000273,9]
[339067420,1727190644357,-150.112235,0.000273,9]
[339067421,1727190644369,-4148.17570796,0.00027329,2]
[339067422,1727190644378,-66037.9219619,0.00027337,4]
[339067423,1727190644387,-63191.1042127,0.00027337,4]
[339067424,1727190644398,-66037.9219619,0.00027352,4]
[339067425,1727190644408,-63191.1042127,0.00027352,4]
[339067426,1727190644418,-438.438772,0.00027353,7]
[339067427,1727190644428,-165.65,0.00027356,2]
[339067428,1727190644439,-165.65,0.00027356,2]
[339067429,1727190644449,-165.65,0.00027356,2]
[339067430,1727190644461,-165.65,0.00027356,2]
[339067431,1727190644470,-165.65,0.00027356,2]
[339067432,1727190644479,-66037.9219619,0.00027357,4]
[339067433,1727190644488,-63191.1042127,0.00027357,4]
[339067434,1727190644498,-5581.56136806,0.00027367,4]